[Event "*** SCC Grand Prix: Titled Tuesday Blitz"]
[Site "Chess.com"]
[Date "2020.09.08"]
[Round "9"]
[White "CzechmVIII"]
[Black "CalinGheorghiu"]
[Result "0-1"]
[WhiteElo "2168"]
[BlackElo "2324"]
[TimeControl "180+1"]
[EndTime "11:46:48 PDT"]
[Termination "CalinGheorghiu won on time"]

1. e4 {[%clk 0:03:00.9]} 1... e6 {[%clk 0:02:59]} 2. d4 {[%clk 0:03:00.4]} 2...
d5 {[%clk 0:02:53.3]} 3. Nc3 {[%clk 0:03:00.2]} 3... Nf6 {[%clk 0:02:52.9]} 4.
Bg5 {[%clk 0:03:00.2]} 4... Bb4 {[%clk 0:02:51.3]} 5. e5 {[%clk 0:03:00.2]} 5...
h6 {[%clk 0:02:51.3]} 6. Bc1 {[%clk 0:03:00.8]} 6... Bxc3+ {[%clk 0:02:51.2]} 7.
bxc3 {[%clk 0:03:00.3]} 7... Ne4 {[%clk 0:02:51.4]} 8. Qg4 {[%clk 0:03:00.3]}
8... g6 {[%clk 0:02:47.7]} 9. Ne2 {[%clk 0:02:58.9]} 9... c5 {[%clk 0:02:21.9]}
10. f3 {[%clk 0:02:58.9]} 10... Ng5 {[%clk 0:02:21.8]} 11. h4 {[%clk 0:02:59.1]}
11... Nh7 {[%clk 0:02:21.7]} 12. Bxh6 {[%clk 0:02:58.5]} 12... Nc6 {[%clk
0:02:18.1]} 13. h5 {[%clk 0:02:39.6]} 13... Rg8 {[%clk 0:02:15.4]} 14. Bd2
{[%clk 0:02:06.3]} 14... Nf8 {[%clk 0:01:55.6]} 15. h6 {[%clk 0:01:52.4]} 15...
Nh7 {[%clk 0:01:51.9]} 16. Nf4 {[%clk 0:01:45.3]} 16... cxd4 {[%clk 0:01:41.9]}
17. cxd4 {[%clk 0:01:31.9]} 17... Nxd4 {[%clk 0:01:40.5]} 18. Bd3 {[%clk
0:01:32.1]} 18... Qc7 {[%clk 0:01:25.9]} 19. O-O {[%clk 0:00:33.9]} 19... Bd7
{[%clk 0:01:17.9]} 20. Nxg6 {[%clk 0:00:26]} 20... fxg6 {[%clk 0:01:12.9]} 21.
Qxd4 {[%clk 0:00:20.7]} 21... b6 {[%clk 0:00:54.3]} 22. f4 {[%clk 0:00:17.8]}
22... Nf8 {[%clk 0:00:49.8]} 23. a4 {[%clk 0:00:16.3]} 23... a5 {[%clk
0:00:46.8]} 24. Rab1 {[%clk 0:00:15]} 24... Rb8 {[%clk 0:00:47.2]} 25. Be3
{[%clk 0:00:10.4]} 25... Qc6 {[%clk 0:00:29.4]} 26. Rxb6 {[%clk 0:00:09.5]}
26... Rxb6 {[%clk 0:00:28.3]} 27. Qxb6 {[%clk 0:00:09.8]} 27... Qxb6 {[%clk
0:00:28.9]} 28. Bxb6 {[%clk 0:00:10]} 28... Bxa4 {[%clk 0:00:29.5]} 29. Bxa5
{[%clk 0:00:10.3]} 29... Nd7 {[%clk 0:00:28.7]} 30. h7 {[%clk 0:00:08.6]} 30...
Rh8 {[%clk 0:00:27.8]} 31. Bxg6+ {[%clk 0:00:08.6]} 31... Ke7 {[%clk 0:00:27.9]}
32. Bd3 {[%clk 0:00:07]} 32... Kf7 {[%clk 0:00:22.7]} 33. Ra1 {[%clk 0:00:05.5]}
33... Nc5 {[%clk 0:00:22.4]} 34. Bb4 {[%clk 0:00:04]} 34... Nxd3 {[%clk
0:00:21.7]} 35. cxd3 {[%clk 0:00:04.4]} 35... Bc2 {[%clk 0:00:21.2]} 36. Ra7+
{[%clk 0:00:04.1]} 36... Kg6 {[%clk 0:00:21.4]} 0-1

[Event "*** SCC Grand Prix: Titled Tuesday Blitz"]
[Site "Chess.com"]
[Date "2020.09.08"]
[Round "9"]
[White "Spriteball"]
[Black "sasko1234"]
[Result "1-0"]
[WhiteElo "2290"]
[BlackElo "2418"]
[TimeControl "180+1"]
[EndTime "11:46:51 PDT"]
[Termination "Spriteball won by resignation"]

1. c4 {[%clk 0:03:00.9]} 1... Nf6 {[%clk 0:02:58.7]} 2. Nc3 {[%clk 0:02:59.8]}
2... d6 {[%clk 0:02:57.8]} 3. e4 {[%clk 0:02:56.7]} 3... c6 {[%clk 0:02:57]} 4.
d4 {[%clk 0:02:56.2]} 4... e5 {[%clk 0:02:54.8]} 5. Nf3 {[%clk 0:02:52.8]} 5...
Qc7 {[%clk 0:02:50.4]} 6. Be2 {[%clk 0:02:51.9]} 6... Bg4 {[%clk 0:02:49.2]} 7.
O-O {[%clk 0:02:47]} 7... Be7 {[%clk 0:02:48.2]} 8. Be3 {[%clk 0:02:41.8]} 8...
Nbd7 {[%clk 0:02:46.8]} 9. h3 {[%clk 0:02:40.5]} 9... Bh5 {[%clk 0:02:45.8]} 10.
Qc2 {[%clk 0:02:37.9]} 10... O-O {[%clk 0:02:44.1]} 11. Rad1 {[%clk 0:02:34.8]}
11... Rfe8 {[%clk 0:02:38]} 12. a3 {[%clk 0:02:32.3]} 12... a5 {[%clk
0:02:36.9]} 13. d5 {[%clk 0:02:26.9]} 13... h6 {[%clk 0:02:19.1]} 14. b4 {[%clk
0:02:00.3]} 14... axb4 {[%clk 0:02:17.7]} 15. axb4 {[%clk 0:02:01.2]} 15... Bg6
{[%clk 0:02:17.2]} 16. Nh4 {[%clk 0:01:52]} 16... Bh7 {[%clk 0:02:17.1]} 17.
dxc6 {[%clk 0:01:49.9]} 17... bxc6 {[%clk 0:02:16]} 18. Nf5 {[%clk 0:01:46.5]}
18... Bxf5 {[%clk 0:02:01.6]} 19. exf5 {[%clk 0:01:47.4]} 19... d5 {[%clk
0:02:00.9]} 20. cxd5 {[%clk 0:01:41.2]} 20... cxd5 {[%clk 0:02:00.9]} 21. Qb3
{[%clk 0:01:38]} 21... d4 {[%clk 0:01:59.3]} 22. Nb5 {[%clk 0:01:38.1]} 22...
Qb6 {[%clk 0:01:54.3]} 23. Bc1 {[%clk 0:01:37.7]} 23... Nb8 {[%clk 0:01:36]} 24.
Bc4 {[%clk 0:01:35.5]} 24... Rf8 {[%clk 0:01:33.7]} 25. f4 {[%clk 0:01:31.1]}
25... d3+ {[%clk 0:01:24.5]} 26. Kh1 {[%clk 0:01:28.4]} 26... e4 {[%clk
0:01:24.9]} 27. Rfe1 {[%clk 0:01:24.5]} 27... Nc6 {[%clk 0:01:23.9]} 28. Be3
{[%clk 0:01:24]} 28... Qb7 {[%clk 0:01:20.3]} 29. g4 {[%clk 0:01:17.6]} 29...
Bxb4 {[%clk 0:01:14.9]} 30. Rg1 {[%clk 0:01:10.2]} 30... Nh7 {[%clk 0:01:04.9]}
31. g5 {[%clk 0:01:01.5]} 31... Kh8 {[%clk 0:01:04.8]} 32. Nd6 {[%clk 0:00:59]}
32... Qd7 {[%clk 0:01:00]} 33. Nxf7+ {[%clk 0:00:53]} 33... Rxf7 {[%clk
0:01:00.1]} 34. Bxf7 {[%clk 0:00:53.9]} 34... Qxf5 {[%clk 0:01:00.3]} 35. Be6
{[%clk 0:00:51.9]} 35... Qf8 {[%clk 0:00:57.9]} 36. gxh6 {[%clk 0:00:51.1]}
36... gxh6 {[%clk 0:00:56]} 37. Rg8+ {[%clk 0:00:48.8]} 37... Qxg8 {[%clk
0:00:55.2]} 38. Bxg8 {[%clk 0:00:49.7]} 38... Rxg8 {[%clk 0:00:55]} 39. Qb2+
{[%clk 0:00:48.8]} 39... Rg7 {[%clk 0:00:52]} 40. Rg1 {[%clk 0:00:48.7]} 40...
Bf8 {[%clk 0:00:51.2]} 41. Rxg7 {[%clk 0:00:40]} 41... Bxg7 {[%clk 0:00:51.2]}
42. Qb7 {[%clk 0:00:40.1]} 42... Nd4 {[%clk 0:00:38.7]} 43. Qxe4 {[%clk
0:00:30.7]} 43... Ne2 {[%clk 0:00:30]} 44. Qxd3 {[%clk 0:00:28.5]} 44... Ng3+
{[%clk 0:00:28.1]} 45. Kg2 {[%clk 0:00:28.8]} 45... Nh5 {[%clk 0:00:28.3]} 46.
Qd8+ {[%clk 0:00:28]} 46... Nf8 {[%clk 0:00:28.3]} 47. Bc5 {[%clk 0:00:27.8]}
47... Kg8 {[%clk 0:00:27]} 48. Qd5+ {[%clk 0:00:27.8]} 48... Kh8 {[%clk
0:00:27.2]} 49. Qxh5 {[%clk 0:00:24.9]} 1-0

[Event "*** SCC Grand Prix: Titled Tuesday Blitz"]
[Site "Chess.com"]
[Date "2020.09.08"]
[Round "9"]
[White "Th3_Hound"]
[Black "alejogarcia1999"]
[Result "1-0"]
[WhiteElo "2577"]
[BlackElo "2350"]
[TimeControl "180+1"]
[EndTime "11:46:51 PDT"]
[Termination "Th3_Hound won by checkmate"]

1. e4 {[%clk 0:03:00.9]} 1... c5 {[%clk 0:02:59.1]} 2. Nf3 {[%clk 0:03:00.8]}
2... e6 {[%clk 0:02:58.5]} 3. d4 {[%clk 0:03:01.1]} 3... cxd4 {[%clk 0:02:59.4]}
4. Nxd4 {[%clk 0:03:02]} 4... Nc6 {[%clk 0:02:58.8]} 5. Nc3 {[%clk 0:03:01.3]}
5... Nf6 {[%clk 0:02:58.8]} 6. Ndb5 {[%clk 0:02:59.9]} 6... d6 {[%clk
0:02:58.7]} 7. Bf4 {[%clk 0:02:59.2]} 7... e5 {[%clk 0:02:59.3]} 8. Bg5 {[%clk
0:02:59.4]} 8... a6 {[%clk 0:03:00.1]} 9. Na3 {[%clk 0:02:56.9]} 9... b5 {[%clk
0:03:00.3]} 10. Nd5 {[%clk 0:02:57.3]} 10... Be7 {[%clk 0:02:59.8]} 11. Bxf6
{[%clk 0:02:57.8]} 11... Bxf6 {[%clk 0:03:00.7]} 12. c4 {[%clk 0:02:58.1]} 12...
b4 {[%clk 0:03:00.7]} 13. Nc2 {[%clk 0:02:58.7]} 13... a5 {[%clk 0:03:01.6]} 14.
g3 {[%clk 0:02:57.4]} 14... Be6 {[%clk 0:03:01.7]} 15. Bg2 {[%clk 0:02:57.3]}
15... O-O {[%clk 0:03:01.3]} 16. O-O {[%clk 0:02:57.1]} 16... Rc8 {[%clk
0:03:00.7]} 17. b3 {[%clk 0:02:56.6]} 17... Bxd5 {[%clk 0:03:00.5]} 18. Qxd5
{[%clk 0:02:50.5]} 18... Nd4 {[%clk 0:03:00]} 19. Nxd4 {[%clk 0:02:49.2]} 19...
exd4 {[%clk 0:03:00.7]} 20. Qf5 {[%clk 0:02:40.2]} 20... Qb6 {[%clk 0:02:50.2]}
21. Rad1 {[%clk 0:02:38.8]} 21... a4 {[%clk 0:02:48.1]} 22. Rfe1 {[%clk
0:02:26.6]} 22... axb3 {[%clk 0:02:47.1]} 23. axb3 {[%clk 0:02:27.5]} 23... Rc5
{[%clk 0:02:47.1]} 24. Qg4 {[%clk 0:02:25]} 24... Ra5 {[%clk 0:02:46]} 25. f4
{[%clk 0:02:19.2]} 25... d3+ {[%clk 0:02:34.1]} 26. Kh1 {[%clk 0:02:18.4]} 26...
d2 {[%clk 0:02:33.6]} 27. Rf1 {[%clk 0:01:48.5]} 27... Bc3 {[%clk 0:02:32.6]}
28. f5 {[%clk 0:01:42.8]} 28... f6 {[%clk 0:02:25.9]} 29. e5 {[%clk 0:01:43.2]}
29... Rxe5 {[%clk 0:02:20.3]} 30. Bd5+ {[%clk 0:01:42.8]} 30... Kh8 {[%clk
0:02:14.7]} 31. Qh5 {[%clk 0:01:40.6]} 31... Re1 {[%clk 0:01:45.9]} 32. Kg2
{[%clk 0:01:40.8]} 32... Qe3 {[%clk 0:01:41.6]} 33. Qf3 {[%clk 0:01:38.1]} 33...
Re8 {[%clk 0:01:25.7]} 34. Be6 {[%clk 0:01:34.6]} 34... Qe5 {[%clk 0:01:10.7]}
35. Rf2 {[%clk 0:01:24.3]} 35... Rxd1 {[%clk 0:01:02.3]} 36. Qxd1 {[%clk
0:01:23.9]} 36... Ra8 {[%clk 0:01:01.7]} 37. Rxd2 {[%clk 0:01:18.7]} 37... Bxd2
{[%clk 0:00:54.2]} 38. Qxd2 {[%clk 0:01:19.6]} 38... Qc5 {[%clk 0:00:42.1]} 39.
Bd5 {[%clk 0:01:12.3]} 39... Re8 {[%clk 0:00:41]} 40. Be6 {[%clk 0:01:12.1]}
40... Ra8 {[%clk 0:00:40.3]} 41. Bd5 {[%clk 0:01:11.4]} 41... Ra1 {[%clk
0:00:40]} 42. Kh3 {[%clk 0:01:06.4]} 42... Qg1 {[%clk 0:00:35.1]} 43. Qxb4
{[%clk 0:01:03.6]} 43... h5 {[%clk 0:00:29.3]} 44. Qb8+ {[%clk 0:00:56.2]} 44...
Kh7 {[%clk 0:00:28.7]} 45. Qg8+ {[%clk 0:00:48.4]} 45... Kh6 {[%clk 0:00:28.5]}
46. Qh8+ {[%clk 0:00:42.7]} 46... Kg5 {[%clk 0:00:28.2]} 47. Qxg7+ {[%clk
0:00:41.7]} 47... Kxf5 {[%clk 0:00:28.9]} 48. Qh7+ {[%clk 0:00:38.2]} 48... Ke5
{[%clk 0:00:28.9]} 49. Qe4# {[%clk 0:00:38.4]} 1-0

[Event "*** SCC Grand Prix: Titled Tuesday Blitz"]
[Site "Chess.com"]
[Date "2020.09.08"]
[Round "9"]
[White "mishanick"]
[Black "Grandelicious"]
[Result "1-0"]
[WhiteElo "3000"]
[BlackElo "2802"]
[TimeControl "180+1"]
[EndTime "11:46:52 PDT"]
[Termination "mishanick won by resignation"]

1. d4 {[%clk 0:03:00.9]} 1... d5 {[%clk 0:02:59.7]} 2. c4 {[%clk 0:03:01.4]}
2... e6 {[%clk 0:02:59.6]} 3. Nc3 {[%clk 0:03:02.1]} 3... a6 {[%clk 0:02:59.4]}
4. cxd5 {[%clk 0:03:02.4]} 4... exd5 {[%clk 0:03:00.3]} 5. Qb3 {[%clk
0:03:02.9]} 5... c5 {[%clk 0:02:57.5]} 6. Nf3 {[%clk 0:03:00]} 6... c4 {[%clk
0:02:55]} 7. Qc2 {[%clk 0:02:59.9]} 7... Bb4 {[%clk 0:02:46.9]} 8. e4 {[%clk
0:02:58.8]} 8... Nc6 {[%clk 0:02:37.3]} 9. a3 {[%clk 0:02:45]} 9... Bxc3+ {[%clk
0:02:35.2]} 10. bxc3 {[%clk 0:02:45.9]} 10... Nge7 {[%clk 0:02:26.6]} 11. Be2
{[%clk 0:02:37.3]} 11... O-O {[%clk 0:02:06.4]} 12. O-O {[%clk 0:02:35.7]} 12...
dxe4 {[%clk 0:02:05.6]} 13. Qxe4 {[%clk 0:02:36.6]} 13... Bf5 {[%clk 0:02:06.1]}
14. Qf4 {[%clk 0:02:33.9]} 14... b5 {[%clk 0:02:05.6]} 15. a4 {[%clk 0:02:31.7]}
15... Qd7 {[%clk 0:01:57.9]} 16. Ba3 {[%clk 0:02:31.3]} 16... Nd5 {[%clk
0:01:54.1]} 17. Qd2 {[%clk 0:02:27.7]} 17... Rfe8 {[%clk 0:01:51.7]} 18. Bc5
{[%clk 0:02:21.7]} 18... Na5 {[%clk 0:01:29.4]} 19. Bd1 {[%clk 0:02:09.3]} 19...
bxa4 {[%clk 0:01:25.9]} 20. Bxa4 {[%clk 0:02:02.3]} 20... Qc7 {[%clk 0:01:09.4]}
21. Bxe8 {[%clk 0:01:58.3]} 21... Rxe8 {[%clk 0:01:08.9]} 22. Rae1 {[%clk
0:01:57.8]} 22... Rd8 {[%clk 0:01:00.8]} 23. Re5 {[%clk 0:01:55.2]} 23... Bd3
{[%clk 0:00:56.7]} 24. Rfe1 {[%clk 0:01:54.4]} 24... f6 {[%clk 0:00:53]} 25.
Re8+ {[%clk 0:01:31.8]} 25... Rxe8 {[%clk 0:00:52.1]} 26. Rxe8+ {[%clk
0:01:32.7]} 26... Kf7 {[%clk 0:00:52.7]} 27. Rf8+ {[%clk 0:01:33.3]} 27... Kg6
{[%clk 0:00:47.3]} 28. g3 {[%clk 0:01:19]} 28... h6 {[%clk 0:00:41.2]} 29. Qe1
{[%clk 0:01:16]} 29... Qd7 {[%clk 0:00:34.2]} 30. Ra8 {[%clk 0:01:01.9]} 30...
Nb3 {[%clk 0:00:27.5]} 31. Rxa6 {[%clk 0:01:01.3]} 31... Kh7 {[%clk 0:00:23.6]}
32. Ra7 {[%clk 0:01:01.1]} 32... Qg4 {[%clk 0:00:20.4]} 33. Nh4 {[%clk
0:00:40.7]} 33... Nxc3 {[%clk 0:00:20.6]} 34. f3 {[%clk 0:00:34.1]} 34... Ne2+
{[%clk 0:00:17.3]} 35. Qxe2 {[%clk 0:00:33.4]} 35... Bxe2 {[%clk 0:00:18.2]} 36.
fxg4 {[%clk 0:00:33.4]} 36... c3 {[%clk 0:00:19.1]} 37. Ba3 {[%clk 0:00:32]}
37... Nxd4 {[%clk 0:00:16.5]} 38. Nf5 {[%clk 0:00:29.7]} 38... Nb5 {[%clk
0:00:15.2]} 39. Rxg7+ {[%clk 0:00:29.7]} 39... Kh8 {[%clk 0:00:15]} 40. Bc1
{[%clk 0:00:30.4]} 40... Bd3 {[%clk 0:00:14.9]} 41. Rb7 {[%clk 0:00:28.5]} 41...
Bxf5 {[%clk 0:00:11.6]} 42. Rxb5 {[%clk 0:00:26.1]} 1-0

[Event "*** SCC Grand Prix: Titled Tuesday Blitz"]
[Site "Chess.com"]
[Date "2020.09.08"]
[Round "9"]
[White "Andreikka"]
[Black "gmasterkiller"]
[Result "0-1"]
[WhiteElo "2809"]
[BlackElo "2598"]
[TimeControl "180+1"]
[EndTime "11:46:55 PDT"]
[Termination "gmasterkiller won by resignation"]

1. c4 {[%clk 0:03:00.9]} 1... Nf6 {[%clk 0:02:59.7]} 2. Nc3 {[%clk 0:03:00]}
2... e6 {[%clk 0:02:59.8]} 3. e4 {[%clk 0:02:58.9]} 3... d5 {[%clk 0:03:00.3]}
4. cxd5 {[%clk 0:02:59.2]} 4... exd5 {[%clk 0:03:00.4]} 5. e5 {[%clk 0:02:59.8]}
5... d4 {[%clk 0:03:00.9]} 6. exf6 {[%clk 0:02:57.2]} 6... dxc3 {[%clk
0:03:00.1]} 7. Nf3 {[%clk 0:02:56.2]} 7... Qxf6 {[%clk 0:02:56.9]} 8. dxc3
{[%clk 0:02:53.7]} 8... Bd6 {[%clk 0:02:55.1]} 9. Bg5 {[%clk 0:02:50.9]} 9...
Qg6 {[%clk 0:02:52.6]} 10. Bd3 {[%clk 0:02:48.5]} 10... Bf5 {[%clk 0:02:48.5]}
11. Qe2+ {[%clk 0:02:47.5]} 11... Kf8 {[%clk 0:02:41.1]} 12. Bxf5 {[%clk
0:02:45.6]} 12... Qxf5 {[%clk 0:02:40.7]} 13. O-O {[%clk 0:02:44.7]} 13... Nc6
{[%clk 0:02:38]} 14. Rfe1 {[%clk 0:02:44.2]} 14... h6 {[%clk 0:02:38]} 15. Be3
{[%clk 0:02:43.5]} 15... Kg8 {[%clk 0:02:36.5]} 16. b4 {[%clk 0:02:41.5]} 16...
Kh7 {[%clk 0:02:33.4]} 17. Rad1 {[%clk 0:02:40.5]} 17... Rhe8 {[%clk 0:02:32.5]}
18. b5 {[%clk 0:02:40.4]} 18... Ne5 {[%clk 0:02:32.4]} 19. Nd4 {[%clk
0:02:36.1]} 19... Qg6 {[%clk 0:02:32.5]} 20. h3 {[%clk 0:02:25]} 20... Kg8
{[%clk 0:02:27.6]} 21. a4 {[%clk 0:02:23]} 21... a6 {[%clk 0:02:17.4]} 22. Kh1
{[%clk 0:01:43.9]} 22... Nd7 {[%clk 0:02:06.1]} 23. bxa6 {[%clk 0:01:33.1]}
23... bxa6 {[%clk 0:02:04.4]} 24. a5 {[%clk 0:01:29.5]} 24... Qe4 {[%clk
0:01:54.7]} 25. Qc4 {[%clk 0:01:21.2]} 25... Qe5 {[%clk 0:01:51.4]} 26. Nf3
{[%clk 0:01:09.8]} 26... Qxa5 {[%clk 0:01:50.7]} 27. Bd4 {[%clk 0:01:08.9]}
27... Qb5 {[%clk 0:01:42.6]} 28. Qa2 {[%clk 0:01:08.7]} 28... Nc5 {[%clk
0:01:37.5]} 29. Qd5 {[%clk 0:00:53]} 29... Ne6 {[%clk 0:01:29.3]} 30. Be3 {[%clk
0:00:44]} 30... Qxd5 {[%clk 0:01:27.8]} 31. Rxd5 {[%clk 0:00:40.2]} 31... a5
{[%clk 0:01:28.1]} 32. Ra1 {[%clk 0:00:40.3]} 32... a4 {[%clk 0:01:27.6]} 33. c4
{[%clk 0:00:40.8]} 33... a3 {[%clk 0:01:17]} 34. Nd2 {[%clk 0:00:27.2]} 34...
Reb8 {[%clk 0:01:08.1]} 35. c5 {[%clk 0:00:22.9]} 35... Rb5 {[%clk 0:00:58.4]}
36. Ne4 {[%clk 0:00:20.7]} 36... Be7 {[%clk 0:00:49.5]} 37. Rd7 {[%clk
0:00:13.8]} 37... Bf6 {[%clk 0:00:43.5]} 38. Nxf6+ {[%clk 0:00:11.9]} 38... gxf6
{[%clk 0:00:43.8]} 39. g4 {[%clk 0:00:10.6]} 39... a2 {[%clk 0:00:43.7]} 40.
Rdd1 {[%clk 0:00:10.7]} 40... Nxc5 {[%clk 0:00:41.4]} 41. Rd2 {[%clk 0:00:05.6]}
41... Rb1+ {[%clk 0:00:37.8]} 42. Rd1 {[%clk 0:00:03.2]} 42... Rxa1 {[%clk
0:00:37.1]} 0-1

[Event "*** SCC Grand Prix: Titled Tuesday Blitz"]
[Site "Chess.com"]
[Date "2020.09.08"]
[Round "9"]
[White "ehrenfeld"]
[Black "GMaka"]
[Result "1-0"]
[WhiteElo "2561"]
[BlackElo "2383"]
[TimeControl "180+1"]
[EndTime "11:46:55 PDT"]
[Termination "ehrenfeld won by resignation"]

1. e4 {[%clk 0:03:00]} 1... c6 {[%clk 0:02:59.3]} 2. d4 {[%clk 0:02:58.8]} 2...
d5 {[%clk 0:02:59.1]} 3. exd5 {[%clk 0:02:58.5]} 3... cxd5 {[%clk 0:02:59]} 4.
Bd3 {[%clk 0:02:57.9]} 4... Nc6 {[%clk 0:02:59.2]} 5. c3 {[%clk 0:02:58.2]} 5...
Qc7 {[%clk 0:02:50.4]} 6. Ne2 {[%clk 0:02:57.4]} 6... Bg4 {[%clk 0:02:48.9]} 7.
O-O {[%clk 0:02:57.1]} 7... e6 {[%clk 0:02:47.7]} 8. Qe1 {[%clk 0:02:57.6]} 8...
Bxe2 {[%clk 0:02:44.1]} 9. Qxe2 {[%clk 0:02:57.3]} 9... Bd6 {[%clk 0:02:44.6]}
10. g3 {[%clk 0:02:57.3]} 10... Nge7 {[%clk 0:02:44.2]} 11. Nd2 {[%clk
0:02:56.6]} 11... O-O {[%clk 0:02:38.6]} 12. f4 {[%clk 0:02:55.2]} 12... Rae8
{[%clk 0:02:29.5]} 13. Nf3 {[%clk 0:02:55.2]} 13... Ng6 {[%clk 0:02:10.4]} 14.
Ne5 {[%clk 0:02:36.2]} 14... f5 {[%clk 0:01:50.6]} 15. Bd2 {[%clk 0:02:31.7]}
15... Ncxe5 {[%clk 0:01:45.7]} 16. fxe5 {[%clk 0:02:31.3]} 16... Be7 {[%clk
0:01:46]} 17. g4 {[%clk 0:02:28.9]} 17... Nh4 {[%clk 0:01:27.9]} 18. gxf5 {[%clk
0:02:28.2]} 18... Nxf5 {[%clk 0:01:28.8]} 19. Bxf5 {[%clk 0:01:55]} 19... Rxf5
{[%clk 0:01:27.8]} 20. Rxf5 {[%clk 0:01:54.5]} 20... exf5 {[%clk 0:01:28.7]} 21.
Re1 {[%clk 0:01:48]} 21... Qc6 {[%clk 0:01:23.8]} 22. Qg2 {[%clk 0:01:42.7]}
22... Qe6 {[%clk 0:01:21]} 23. Kh1 {[%clk 0:01:41.4]} 23... Kh8 {[%clk
0:01:16.9]} 24. Rf1 {[%clk 0:01:36.7]} 24... Rg8 {[%clk 0:01:01.1]} 25. Qf3
{[%clk 0:01:19.3]} 25... Rf8 {[%clk 0:01:00.3]} 26. Qh5 {[%clk 0:01:14.1]} 26...
Qg6 {[%clk 0:00:34.1]} 27. Qf3 {[%clk 0:01:10.5]} 27... Qe6 {[%clk 0:00:33]} 28.
c4 {[%clk 0:01:05.1]} 28... dxc4 {[%clk 0:00:25.4]} 29. Qxb7 {[%clk 0:01:04.1]}
29... Rd8 {[%clk 0:00:25.9]} 30. Bc3 {[%clk 0:01:03.6]} 30... g6 {[%clk
0:00:24.9]} 31. Rd1 {[%clk 0:01:00.4]} 31... Qd5+ {[%clk 0:00:24.9]} 32. Qxd5
{[%clk 0:00:59.8]} 32... Rxd5 {[%clk 0:00:25.8]} 33. Kg2 {[%clk 0:00:58.9]}
33... Kg7 {[%clk 0:00:24.7]} 34. Kf3 {[%clk 0:00:56.9]} 34... Kf7 {[%clk
0:00:25.2]} 35. b3 {[%clk 0:00:53.9]} 35... cxb3 {[%clk 0:00:23.6]} 36. axb3
{[%clk 0:00:53.7]} 36... Ke6 {[%clk 0:00:19.8]} 37. Ra1 {[%clk 0:00:52.3]} 37...
Rb5 {[%clk 0:00:19.6]} 38. b4 {[%clk 0:00:45.5]} 38... Bxb4 {[%clk 0:00:16.3]}
39. Ra6+ {[%clk 0:00:41.8]} 39... Kd5 {[%clk 0:00:09.7]} 40. Bxb4 {[%clk
0:00:40.6]} 40... Rxb4 {[%clk 0:00:10.6]} 41. Rd6+ {[%clk 0:00:40.5]} 41... Kc4
{[%clk 0:00:11.5]} 42. e6 {[%clk 0:00:40.8]} 42... Rb8 {[%clk 0:00:04.1]} 43. e7
{[%clk 0:00:36.5]} 43... a5 {[%clk 0:00:05]} 44. Rd8 {[%clk 0:00:36.2]} 44...
Rb3+ {[%clk 0:00:05.4]} 45. Kf4 {[%clk 0:00:35.7]} 1-0

[Event "*** SCC Grand Prix: Titled Tuesday Blitz"]
[Site "Chess.com"]
[Date "2020.09.08"]
[Round "9"]
[White "Matols"]
[Black "teacher4chess"]
[Result "0-1"]
[WhiteElo "2257"]
[BlackElo "2121"]
[TimeControl "180+1"]
[EndTime "11:46:55 PDT"]
[Termination "teacher4chess won by resignation"]

1. d4 {[%clk 0:03:00.9]} 1... d5 {[%clk 0:02:58.9]} 2. c4 {[%clk 0:03:00.5]}
2... c6 {[%clk 0:02:59.4]} 3. Nf3 {[%clk 0:03:00.2]} 3... Nf6 {[%clk 0:02:59.4]}
4. e3 {[%clk 0:03:00.1]} 4... Bg4 {[%clk 0:02:57.9]} 5. h3 {[%clk 0:02:58.9]}
5... Bxf3 {[%clk 0:02:49.3]} 6. Qxf3 {[%clk 0:02:58]} 6... e6 {[%clk 0:02:45.3]}
7. Nc3 {[%clk 0:02:55.2]} 7... Nbd7 {[%clk 0:02:40.3]} 8. Be2 {[%clk 0:02:39.5]}
8... Bb4 {[%clk 0:02:31.5]} 9. Bd2 {[%clk 0:02:33.7]} 9... Bxc3 {[%clk
0:02:30.7]} 10. Bxc3 {[%clk 0:02:33.3]} 10... Ne4 {[%clk 0:02:30.5]} 11. O-O
{[%clk 0:02:30.7]} 11... Nxc3 {[%clk 0:02:26.5]} 12. bxc3 {[%clk 0:02:30]} 12...
Nf6 {[%clk 0:02:25.5]} 13. Bd3 {[%clk 0:02:23.5]} 13... O-O {[%clk 0:02:19.6]}
14. Rab1 {[%clk 0:02:22]} 14... b6 {[%clk 0:02:18.5]} 15. cxd5 {[%clk
0:02:17.2]} 15... cxd5 {[%clk 0:02:14.2]} 16. c4 {[%clk 0:02:16.9]} 16... Rc8
{[%clk 0:02:01.3]} 17. Rfc1 {[%clk 0:02:05.7]} 17... dxc4 {[%clk 0:01:50.4]} 18.
Bxc4 {[%clk 0:02:02]} 18... Qd6 {[%clk 0:01:26.5]} 19. a4 {[%clk 0:01:46.4]}
19... Rc7 {[%clk 0:01:20.3]} 20. Ba6 {[%clk 0:01:35.3]} 20... Rxc1+ {[%clk
0:01:09.4]} 21. Rxc1 {[%clk 0:01:33.9]} 21... Nd5 {[%clk 0:01:02.8]} 22. Bb5
{[%clk 0:01:17.8]} 22... Nb4 {[%clk 0:00:58.3]} 23. Qe4 {[%clk 0:01:13.1]} 23...
a5 {[%clk 0:00:55.4]} 24. Qb7 {[%clk 0:01:01.8]} 24... g6 {[%clk 0:00:49.2]} 25.
Rc7 {[%clk 0:00:57.3]} 25... e5 {[%clk 0:00:44.9]} 26. Rd7 {[%clk 0:00:46]}
26... Qf6 {[%clk 0:00:42.4]} 27. d5 {[%clk 0:00:43]} 27... e4 {[%clk 0:00:33.5]}
28. Qc7 {[%clk 0:00:39.8]} 28... Qa1+ {[%clk 0:00:22.6]} 29. Kh2 {[%clk
0:00:39.7]} 29... Qb2 {[%clk 0:00:22.5]} 30. Qf4 {[%clk 0:00:37.4]} 30... Nd3
{[%clk 0:00:20.7]} 31. Bxd3 {[%clk 0:00:32.4]} 31... exd3 {[%clk 0:00:20.3]} 32.
e4 {[%clk 0:00:10.3]} 32... d2 {[%clk 0:00:20]} 33. Qf3 {[%clk 0:00:09.3]} 33...
Qc1 {[%clk 0:00:19.4]} 0-1